[Event "Austrian Bundesliga 2023-24"]
[Site "Austria"]
[Date "2024.03.21"]
[Round "8.21"]
[White "Sebenik, Matej"]
[Black "Ivanisevic, Ivan"]
[Result "0-1"]
[ECO "A06"]
[WhiteElo "2522"]
[BlackElo "2523"]
[Annotator "TA"]
[PlyCount "74"]
[EventDate "2023.10.21"]
[EventType "team-tourn"]
[EventCountry "AUT"]
[SourceTitle "playchess.com"]
[Source "ChessBase"]
[SourceQuality "1"]
[TimeControl "40/5400+30:1800+30"]

{[%evp 9,74,22,25,30,76,4,4,4,16,16,12,12,41,31,45,32,33,39,39,16,37,21,57,52,56,53,96,100,91,80,97,82,72,74,71,75,70,67,93,64,60,66,118,121,91,76,72,0,0,-17,-14,-26,-21,-239,-57,-67,-68,-84,-76,-602,-194,-184,-220,-470,-491,-478,-479]} 1. Nf3 {[%emt 0:00:09]} d5 {[%emt 0:00:07]} 2. g3 {[%emt 0:00:12]} Nc6 {[%emt 0:00:06]} 3. d4 {[%emt 0:00:07]} Bf5 {[%emt 0:00:05]} 4. c4 {[%emt 0:00:05]} e5 {[%emt 0:00:18]} 5. dxe5 {[%emt 0:00:56]} dxc4 {[%emt 0:01:04]} 6. Bd2 {[%emt 0:00:27]} Be4 {[%emt 0:11:33]} (6... Nd4 $11 {should be considered.} 7. Na3 Nxf3+ 8. exf3 Bxa3 9. Qa4+ b5 10. Qxa3 Qd5) 7. Bh3 {[%emt 0:18:11]} (7. Bg2 $16) 7... Bxf3 $11 {[%emt 0:18:34]} 8. exf3 {[%emt 0:00:04] The position is equal.} Qd3 $1 {[%emt 0:00:07]} 9. Bc3 {[%emt 0:01:32] Prevents Nd4.} Qxd1+ $1 {[%emt 0:02:23]} 10. Kxd1 {[%emt 0:00:05]} Bc5 {[%emt 0:00:06][%cal Ob7b5]} 11. Na3 {[%emt 0:15:31][%cal Bb1a3,Ba3c4,Bc4d6][%mdl 32]} Rd8+ {[%emt 0:01:47]} 12. Kc2 {[%emt 0:02:07]} Nge7 {[%emt 0:03:02]} (12... Bxa3 13. bxa3 Nge7 14. Rhd1 $16) 13. Rad1 {[%emt 0:06:49]} O-O {[%emt 0:04:01]} 14. Nxc4 {[%emt 0:02:20]} Bxf2 {[%emt 0:08:39]} 15. f4 {[%emt 0:19:04]} Nd4+ {[%emt 0:13:06]} 16. Bxd4 {[%emt 0:11:42]} Bxd4 {[%emt 0:00:06]} 17. Rd2 {[%emt 0:11:09]} b5 {[%emt 0:02:26]} 18. Rhd1 $1 {[%emt 0:02:14]} c5 {[%emt 0:02:14]} 19. Nd6 {[%emt 0:00:02]} Rb8 {[%emt 0:00:36] [#]} 20. b4 $1 {[%emt 0:02:20] Threatens to win with Ne4. Black is weak on the light squares} Nd5 {[%emt 0:14:47]} 21. bxc5 {[%emt 0:00:04]} Ne3+ {[%emt 0:00:30]} 22. Kb3 {[%emt 0:00:02]} Bxc5 {[%emt 0:00:35]} 23. Rc1 {[%emt 0:00:04]} Bb6 {[%emt 0:02:21]} 24. Rc6 {[%emt 0:01:44]} (24. Nxb5 $2 a6 (24... Ba5 25. Rd3 $11) 25. Rc6 (25. Nc3 $2 Bc5+ $19) 25... axb5 $19) 24... Rfd8 {[%emt 0:01:11][%cal Oe3c4]} 25. Re2 {[%emt 0:00:12][%cal Oc6b6]} Nd5 {[%emt 0:02:23] [#]} (25... Nc4 $14 26. Nxc4 (26. Nxb5 $2 Na5+ 27. Ka4 Nxc6 $19) 26... bxc4+ 27. Kxc4 Rd1) 26. Nc8 $1 $16 {[%emt 0:04:18]} (26. Nxb5 Ne7 27. Rc4 Nd5 $11) 26... a5 {[%emt 0:03:38][%cal Ba7a5,Ba5a4][%mdl 32] [#]} 27. e6 $1 {[%emt 0:01:42] e7 would now be deadly.} a4+ {[%emt 0:00:55]} 28. Kb2 {[%emt 0:00:18]} (28. Ka3 $16 {Black must now prevent e7.} b4+ (28... Rdxc8 $2 29. Rxc8+ Rxc8 30. exf7+ Kxf7 31. Bxc8 $18) 29. Kxa4 Nc3+ (29... Rdxc8 30. exf7+ Kxf7 31. Be6+ Kf8 32. Rxc8+ $16) 30. Rxc3 bxc3 31. e7) 28... Bd4+ $11 {[%emt 0:01:51]} (28... Rdxc8 $2 29. Rxc8+ Rxc8 30. exf7+ Kxf7 31. Bxc8 $18) 29. Kc1 {[%emt 0:00:02]} fxe6 {[%emt 0:03:20]} (29... Rdxc8 $2 {is the wrong capture.} 30. exf7+ Kxf7 31. Bxc8 $18 (31. Rxc8 Rxc8+ 32. Bxc8 Nc3 $18)) 30. Bxe6+ {[%emt 0:00:03]} Kf8 {[%emt 0:00:08] Hoping for ...Nc3.} 31. f5 $2 {[%emt 0:01:34]} (31. Bxd5 $11 Rxd5 (31... Rdxc8 32. Kb1 $11) 32. Kb1) 31... Bf6 $2 {[%emt 0:00:43]} (31... Nc3 $19 32. Re1 Nxa2+ 33. Bxa2 Rbxc8 (33... Rdxc8 $2 34. Rxc8+ Rxc8+ 35. Kb1 $19) 34. Rxc8 Rxc8+ 35. Kb1 Bf6) 32. h4 $1 $15 {[%emt 0:00:42]} b4 {[%emt 0:01:11] aiming for ...b3.} 33. Rd2 {[%emt 0:00:03]} Nc3 {[%emt 0:00:52][%cal Oc3a2] ...Nxa2+! is the strong threat.} 34. Rc7 $2 {[%emt 0:00:24][%mdl 8192]} (34. Rxd8+ $17 Bxd8 35. h5) 34... Rxd2 $2 {[%emt 0:01:27]} (34... Nxa2+ 35. Bxa2 (35. Rxa2 $2 {too greedy.} b3 $19) 35... Rdxc8 (35... Rbxc8 $2 36. Rxd8+ Rxd8 37. Rf7+ Ke8 38. Ra7 $19) 36. Rxc8+ Rxc8+ 37. Kd1 b3) 35. Kxd2 $19 {[%emt 0:00:03] [#] White wants to mate with Rf7+.} Nb5 $1 {[%emt 0:00:18]} 36. Rc4 {[%emt 0:01:36]} (36. Rc5) 36... b3 {[%emt 0:00:17]} 37. axb3 {[%emt 0:00:30]} axb3 {[%emt 0:00:06] Weighted Error Value: White=0.46/Black=0.39.  Loses game:     	White=2     	---        Missed win:     	---       	Black=1      Mistake:       	White=3     	Black=3      Inaccurate:     	White=1     	Black=4      OK:         	White=8     	Black=10     Best:        	---       	Black=6      Strong:       	White=3     	Black=2} 0-1

[Event "Austrian Bundesliga 2023-24"]
[Site "Austria"]
[Date "2024.03.21"]
[Round "8.22"]
[White "Perunovic, Milos"]
[Black "Schreiner, Peter"]
[Result "1/2-1/2"]
[ECO "C65"]
[WhiteElo "2535"]
[BlackElo "2400"]
[Annotator "TA"]
[PlyCount "63"]
[EventDate "2023.10.21"]
[EventType "team-tourn"]
[EventCountry "AUT"]
[SourceTitle "playchess.com"]
[Source "ChessBase"]
[SourceQuality "1"]
[TimeControl "40/5400+30:1800+30"]

{[%evp 9,63,15,14,16,16,14,17,8,10,18,11,18,25,19,61,40,59,56,60,57,74,79,71,74,68,41,41,33,27,19,37,11,34,37,37,0,0,0,0,0,0,0,0,0,11,16,12,0,0,0,0,0,0,0,0,0]} 1. e4 {[%emt 0:00:08]} e5 {[%emt 0:00:07]} 2. Nf3 {[%emt 0:00:25]} Nc6 {[%emt 0:00:07]} 3. Bb5 {[%emt 0:01:24][%cal Bf1b5,Bb5a4,Ba4b3][%mdl 32]} Nf6 {[%emt 0:02:28]} 4. d3 {[%emt 0:02:11]} Bc5 {[%emt 0:00:42]} 5. c3 {[%emt 0:06:36]} O-O {[%emt 0:00:32]} 6. Bg5 {[%emt 0:05:32]} Re8 {[%emt 0:06:22]} 7. O-O {[%emt 0:07:30]} a6 {[%emt 0:09:58]} 8. Ba4 {[%emt 0:03:10]} h6 {[%emt 0:01:15]} 9. Bh4 {[%emt 0:00:41]} b5 {[%emt 0:00:23]} 10. Bb3 {[%emt 0:02:58]} Be7 {[%emt 0:20:17]} 11. a4 {[%emt 0:03:03] [#] Hoping for axb5.} Bb7 {[%emt 0:08:34]} 12. Na3 {[%emt 0:07:19]} Bxa3 {[%emt 0:11:09]} 13. Rxa3 {[%emt 0:01:42]} d6 {[%emt 0:03:19]} 14. axb5 {[%emt 0:13:48]} axb5 {[%emt 0:00:11]} 15. Rxa8 {[%emt 0:00:19]} Bxa8 {[%emt 0:00:20]} 16. Ba2 {[%emt 0:06:26] White is more active.} Qe7 {[%emt 0:02:47]} 17. h3 {[%emt 0:05:25]} Nd8 {[%emt 0:04:58][%cal Bc6d8,Bd8e6,Be6f8][%mdl 32]} 18. Re1 {[%emt 0:06:56]} Ne6 {[%emt 0:03:21]} 19. d4 {[%emt 0:04:44]} Nf8 {[%emt 0:09:30]} 20. Qd3 {[%emt 0:04:28]} Rb8 {[%emt 0:06:00]} 21. dxe5 {[%emt 0:06:00]} dxe5 {[%emt 0:00:09]} 22. Bg3 {[%emt 0:01:52]} Ng6 {[%emt 0:02:58] The position is equal.} 23. Nh4 {[%emt 0:00:43]} Nxh4 {[%emt 0:00:40]} 24. Bxh4 {[%emt 0:00:06]} g5 {[%emt 0:02:21]} 25. Bg3 {[%emt 0:00:05]} Nh5 {[%emt 0:01:43]} 26. Bh2 {[%emt 0:03:53]} Nf4 {[%emt 0:00:52]} 27. Bxf4 {[%emt 0:01:35]} gxf4 {[%emt 0:00:06]} 28. Rd1 {[%emt 0:01:10]} Bc6 {[%emt 0:01:23] Prevents Qd7.} 29. Qf3 {[%emt 0:00:52]} Kg7 {[%emt 0:01:33]} 30. g3 {[%emt 0:01:36]} Qf6 {[%emt 0:00:42]} 31. Bd5 {[%emt 0:02:13]} Rd8 {[%emt 0:00:31]} 32. Bxc6 {[%emt 0:00:48] Weighted Error Value: White=0.06 (flawless) /Black=0.04 (flawless) .  Inaccurate:     	White=3     	Black=1      OK:         	White=9     	Black=15} 1/2-1/2

[Event "Austrian Bundesliga 2023-24"]
[Site "Austria"]
[Date "2024.03.21"]
[Round "8.23"]
[White "Diermair, Andreas"]
[Black "Sipos, Istvan"]
[Result "1-0"]
[ECO "A06"]
[WhiteElo "2434"]
[BlackElo "2457"]
[Annotator "TA"]
[PlyCount "219"]
[EventDate "2023.10.21"]
[EventType "team-tourn"]
[EventCountry "AUT"]
[SourceTitle "playchess.com"]
[Source "ChessBase"]
[SourceQuality "1"]
[TimeControl "40/5400+30:1800+30"]

{[%evp 14,219,47,46,63,0,0,0,39,19,18,5,19,0,0,0,14,14,12,0,21,16,19,17,36,27,44,0,0,0,0,-23,-16,-27,-6,-8,-6,-27,0,-10,15,0,28,29,28,19,31,0,0,0,47,33,41,33,67,66,64,64,72,72,71,52,54,54,72,64,86,86,123,101,106,106,102,102,101,108,103,102,100,93,100,96,100,95,98,98,102,92,101,95,107,106,106,106,102,106,109,102,133,133,151,115,113,120,178,183,180,85,91,89,89,80,85,54,56,43,164,158,204,204,554,0,0,0,522,135,245,245,245,237,489,489,489,465,458,390,368,354,354,346,343,314,314,314,2161,1636,2620,2337,11808,11722,4773,6589,4543,2655,29953,29959,29959,29960,29961,29963,29963,29965,29965,29962,29968,29965,29965,29965,29965,29966,29968,29969,29969,29970,29970,29971,29971,29972,29975,29974,29975,29976,29976,29974,29975,29976,29975,29975,29974,29976,29976,29977,29977,29978,29977,29979,29979,29977,29977,29978,29978,29979,29979,29979,29979,29978,29980,29979]} 1. Nf3 {[%emt 0:00:03]} d5 {[%emt 0:00:06]} 2. g3 {[%emt 0:00:07]} Nf6 {[%emt 0:00:12]} 3. Bg2 {[%emt 0:00:13]} c5 {[%emt 0:01:19]} 4. O-O {[%emt 0:00:58]} Nc6 {[%emt 0:01:17]} 5. d4 {[%emt 0:01:30]} cxd4 {[%emt 0:00:22]} 6. Nxd4 {[%emt 0:00:08]} e5 {[%emt 0:00:07]} 7. Nxc6 {[%emt 0:00:08]} bxc6 {[%emt 0:00:05] [#]} 8. c4 $1 {[%emt 0:00:13]} Rb8 {[%emt 0:10:29]} (8... Be6 9. Qa4) 9. b3 {[%emt 0:09:56]} (9. Bg5 $14) 9... Be6 $11 {[%emt 0:00:53]} 10. Bg5 {[%emt 0:08:32]} Qd7 {[%emt 0:00:19] The position is equal.} 11. cxd5 {[%emt 0:05:14]} cxd5 {[%emt 0:00:27]} 12. Nc3 {[%emt 0:01:14][%cal Bb1c3,Bc3e4,Be4c5][%mdl 32] Threatening Bxf6.} d4 {[%emt 0:06:52]} 13. Bxf6 {[%emt 0:00:45]} gxf6 {[%emt 0:00:06]} 14. Ne4 {[%emt 0:00:07]} Qd8 {[%emt 0:09:38]} 15. Rc1 {[%emt 0:01:09]} Ba3 {[%emt 0:00:32]} 16. Rc2 {[%emt 0:06:06]} f5 {[%emt 0:16:04]} 17. Nc5 {[%emt 0:00:48]} O-O {[%emt 0:11:13]} 18. Qd2 {[%emt 0:09:44]} Bb4 {[%emt 0:03:24]} 19. Qh6 {[%emt 0:02:49]} Rb6 {[%emt 0:02:00]} 20. Nxe6 {[%emt 0:01:51]} fxe6 {[%emt 0:01:16]} 21. Rfc1 {[%emt 0:08:14]} Bc3 {[%emt 0:01:19]} 22. e4 {[%emt 0:04:04]} Qf6 {[%emt 0:05:47]} 23. Qh5 {[%emt 0:04:26]} (23. Qxf6 {simplifies} Rxf6 24. Rf1 f4 25. Bf3) 23... Kg7 {[%emt 0:06:23]} 24. Rd1 {[%emt 0:01:43]} Rbb8 {[%emt 0:02:04]} 25. Re2 {[%emt 0:05:41]} a5 {[%emt 0:01:34]} 26. f4 {[%emt 0:04:44]} Rb5 {[%emt 0:04:04] Black is weak on the light squares} 27. Kh1 {[%emt 0:05:00]} (27. Rf2 {looks sharper.} d3 28. fxe5 Qxe5 29. Rf4) 27... Kh8 {[%emt 0:04:35]} 28. Rf2 {[%emt 0:02:12]} Rc5 {[%emt 0:05:18]} 29. Qe2 {[%emt 0:02:07]} Bb4 {[%emt 0:01:40]} 30. Rdf1 {[%emt 0:06:14]} Rd8 {[%emt 0:01:03]} 31. Rd1 {[%emt 0:01:18]} exf4 {[%emt 0:00:55]} (31... Rc3 $11) 32. Rxf4 $14 {[%emt 0:00:49]} Qe5 {[%emt 0:02:02]} 33. Qf1 {[%emt 0:01:39]} d3 {[%emt 0:01:51]} 34. Rxd3 {[%emt 0:01:05]} Rxd3 {[%emt 0:00:39]} 35. Qxd3 {[%emt 0:00:02]} Rc1+ {[%emt 0:00:37]} 36. Bf1 {[%emt 0:02:02][%cal Bg2f1,Bf1d3,Bd3e4][%mdl 32]} Qd6 {[%emt 0:00:04]} 37. Kg2 {[%emt 0:01:38]} Qxd3 $1 {[%emt 0:01:08]} 38. Bxd3 {[%emt 0:00:02][%mdl 4096] Endgame. KRB-KRB} Bd6 {[%emt 0:01:07]} 39. Rf2 {[%emt 0:00:53]} fxe4 {[%emt 0:00:36]} 40. Bxe4 {[%emt 0:00:00]} Rc7 {[%emt 0:00:00]} 41. Bd3 {[%emt 0:06:26]} Kg7 {[%emt 0:03:24]} 42. Bc4 {[%emt 0:01:24]} Re7 {[%emt 0:02:15]} 43. Re2 {[%emt 0:00:43]} Kf6 {[%emt 0:00:07]} 44. Kf3 {[%emt 0:00:16]} Bc5 {[%emt 0:00:24]} 45. Re4 {[%emt 0:02:36]} e5 {[%emt 0:10:11]} 46. Bd3 {[%emt 0:05:23]} Rd7 {[%emt 0:00:32]} 47. Ke2 {[%emt 0:00:06]} h6 {[%emt 0:08:17]} 48. Rh4 {[%emt 0:00:35]} Kg5 {[%emt 0:01:23]} 49. Rc4 {[%emt 0:02:07]} Bb4 {[%emt 0:00:13]} 50. Ke3 {[%emt 0:04:33]} Rd4 {[%emt 0:04:27]} 51. Rc8 {[%emt 0:02:28]} Rd6 {[%emt 0:01:36]} 52. Rg8+ {[%emt 0:02:30]} Kf6 {[%emt 0:00:02]} 53. h4 {[%emt 0:00:54]} Bc5+ {[%emt 0:02:36]} 54. Ke2 {[%emt 0:00:06]} Bb4 {[%emt 0:00:27]} 55. a4 {[%emt 0:03:26]} Bc5 {[%emt 0:01:20]} 56. g4 {[%emt 0:01:26]} Rd4 {[%emt 0:00:32]} 57. Rg6+ {[%emt 0:01:30]} Kf7 {[%emt 0:00:01] Threatens to win with ...e4.} 58. h5 {[%emt 0:01:12]} (58. Rxh6 Rxg4 59. Bc4+ Kg7 $11) 58... Rf4 {[%emt 0:01:09]} (58... Rd6 $16) 59. Bc4+ $18 {[%emt 0:00:45]} Kf8 {[%emt 0:00:05]} 60. Rg8+ {[%emt 0:01:02]} (60. Rxh6 Rxg4 61. Rc6 Bd4) ({White should try} 60. Ra6 $18) 60... Ke7 $16 {[%emt 0:00:01]} 61. Rg7+ {[%emt 0:01:37]} Kf8 {[%emt 0:00:13]} 62. Rc7 {[%emt 0:00:22]} Bd4 {[%emt 0:01:30]} 63. Rc6 {[%emt 0:02:24]} Rxg4 {[%emt 0:00:21]} 64. Rxh6 {[%emt 0:00:06]} Kg7 {[%emt 0:00:22] Repels Rf6} (64... e4 $1 $14) 65. Ra6 $1 $18 {[%emt 0:00:50]} Bc3 {[%emt 0:01:02]} (65... Rg2+ $16 {is a better defense.} 66. Kf3 Rf2+ 67. Kg3 e4 68. h6+ (68. Rxa5 e3 $16) 68... Kh7) 66. h6+ $1 {[%emt 0:00:32]} Kh7 $2 {[%emt 0:00:01]} (66... Kh8 {is more resistant.} 67. Bd3 e4) 67. Ke3 $2 {[%emt 0:01:36]} (67. Bd3+ $1 $18 e4 68. Bxe4+ Rxe4+ 69. Kd3) 67... Rg3+ $1 $11 {[%emt 0:00:24]} (67... Rg6 $2 68. Bd3 Kxh6 69. Rxg6+ $18 (69. Bxg6 Bb4 $18)) 68. Ke2 $2 {[%emt 0:00:33][%mdl 8192]} (68. Ke4 $11) 68... Rg4 $1 $18 {[%emt 0:01:00] [#] White leaves nothing to chance now.} 69. Re6 $2 {[%emt 0:00:10]} (69. Bd3+ $1 $18 e4 70. Bxe4+ Rxe4+ 71. Kd3) 69... e4 {[%emt 0:00:21] [#]} (69... Rg2+ $16 70. Kf3 Rd2) 70. Bd5 $1 {[%emt 0:00:21]} Rg2+ {[%emt 0:00:34]} 71. Kf1 {[%emt 0:00:15]} Rh2 $2 {[%emt 0:00:24]} (71... Rg4 {was worth a try.} 72. Bxe4+ Kh8) 72. Bxe4+ {[%emt 0:00:06]} Kg8 {[%emt 0:00:04]} 73. Rc6 {[%emt 0:01:11]} Bd4 {[%emt 0:00:17]} 74. Rd6 {[%emt 0:01:21]} Bc3 {[%emt 0:00:35]} 75. Kg1 {[%emt 0:00:35] Rd8+ would kill now.} Rh4 {[%emt 0:00:11]} 76. h7+ {[%emt 0:00:29]} Kf7 {[%emt 0:00:18]} 77. Bd3 {[%emt 0:00:25]} Rd4 {[%emt 0:00:46]} 78. Rc6 {[%emt 0:00:58] Threatening mate with Rc7+.} ({Inferior is} 78. h8=R Rxd6 79. Rh3 Bb4 $11) ({And not} 78. h8=Q Rg4+ 79. Kf2 Bxh8 $11) (78. h8=N+ Ke7 79. Rxd4 (79. Rc6 Rxd3 80. Ng6+ Kf7 $17) 79... Bxd4+ 80. Kf1 Bxh8 $11) (78. h8=B Rg4+ 79. Kf2 Bxh8 $11) 78... Rxd3 $2 {[%emt 0:01:59] [#]} (78... Bb2 79. Bc2 (79. h8=R Rg4+ 80. Kh2 Bxh8 $16) (79. Rc7+ Ke6 $18) 79... Rd2) 79. Rxc3 $1 {[%emt 0:00:15][%mdl 512] KR-KR} Rd1+ {[%emt 0:00:04]} (79... Rd8 80. Rc7+) 80. Kg2 {[%emt 0:00:26] White threatens Rc7+ and mate.} Kg7 {[%emt 0:00:09]} 81. Rh3 {[%emt 0:00:20]} Rd2+ {[%emt 0:00:50]} 82. Kf1 {[%emt 0:00:43]} Kh8 {[%emt 0:00:04]} 83. Ke1 {[%emt 0:00:04]} Rd6 {[%emt 0:00:27]} 84. Ke2 {[%emt 0:00:08] White mates.} Rd5 {[%emt 0:00:55]} 85. Ke3 {[%emt 0:00:10]} Rd1 {[%emt 0:00:31]} 86. Ke4 {[%emt 0:00:09]} Rg1 {[%emt 0:00:27]} 87. Kd5 {[%emt 0:01:10]} Rc1 {[%emt 0:00:20]} 88. Kd4 {[%emt 0:00:17]} Rd1+ {[%emt 0:01:02]} 89. Kc4 {[%emt 0:00:23]} Rd7 {[%emt 0:00:20]} 90. Rh5 {[%emt 0:01:00]} Ra7 {[%emt 0:00:02]} 91. Rb5 {[%emt 0:00:57]} Kxh7 {[%emt 0:01:06]} 92. Kc5 {[%emt 0:00:21]} Kg6 {[%emt 0:00:09]} 93. Kb6 {[%emt 0:00:07]} Ra8 {[%emt 0:00:02]} 94. Kb7 {[%emt 0:00:10]} Re8 {[%emt 0:00:07]} 95. Rxa5 {[%emt 0:00:19]} Kf6 {[%emt 0:00:29]} 96. Ra6+ {[%emt 0:01:14]} Ke5 {[%emt 0:00:06]} 97. Rc6 {[%emt 0:00:43]} Kd5 {[%emt 0:00:11]} 98. b4 {[%emt 0:00:59][%cal Bb3b4,Bb4b5,Bb5b6][%mdl 32]} Re7+ {[%emt 0:00:24]} 99. Kb6 {[%emt 0:00:06]} Re8 {[%emt 0:00:06]} 100. b5 {[%emt 0:00:22]} Ra8 {[%emt 0:00:09]} 101. a5 {[%emt 0:01:05]} Rb8+ {[%emt 0:00:07]} 102. Ka6 {[%emt 0:00:02]} Ra8+ {[%emt 0:00:07]} 103. Kb7 {[%emt 0:00:13]} Rxa5 {[%emt 0:00:05]} 104. b6 {[%emt 0:00:05]} Ra1 {[%emt 0:00:49]} 105. Rh6 {[%emt 0:00:18]} Rg1 {[%emt 0:00:49]} 106. Ka7 {[%emt 0:00:17]} Ra1+ {[%emt 0:00:33]} 107. Kb8 {[%emt 0:00:05]} Kc5 {[%emt 0:02:20]} 108. Kc7 {[%emt 0:00:26]} Rg1 {[%emt 0:00:13]} 109. Rh5+ {[%emt 0:00:18]} Kc4 {[%emt 0:00:05]} 110. b7 {[%emt 0:00:10] Weighted Error Value: White=0.10 (very precise) /Black=0.11 (very precise) .  Missed win:     	White=2     	---        Mistake:       	White=3     	Black=8      Inaccurate:     	White=3     	Black=7      OK:         	White=26    	Black=23     Best:        	White=3     	Black=4      Strong:       	White=3     	Black=3      Brilliant:      	White=1     	---} 1-0

[Event "Austrian Bundesliga 2023-24"]
[Site "Austria"]
[Date "2024.03.21"]
[Round "8.24"]
[White "Borhy, Marcell"]
[Black "Hoefelsauer, Thomas"]
[Result "1/2-1/2"]
[ECO "A06"]
[WhiteElo "2370"]
[BlackElo "2302"]
[Annotator "TA"]
[PlyCount "74"]
[EventDate "2023.10.21"]
[EventType "team-tourn"]
[EventCountry "AUT"]
[SourceTitle "playchess.com"]
[Source "ChessBase"]
[SourceQuality "1"]
[TimeControl "40/5400+30:1800+30"]

{[%evp 9,74,29,24,28,62,63,68,60,58,50,56,51,53,49,53,47,50,41,51,48,70,61,81,31,37,22,15,13,11,20,22,0,-4,-33,-30,-70,-51,-63,-56,-60,-71,-65,-72,-65,-53,-81,-39,-31,-31,-26,-37,-30,-37,-41,-37,-109,-109,-122,-92,-93,-85,-79,0,-77,0,-76,0]} 1. Nf3 {[%emt 0:00:04]} d5 {[%emt 0:00:04]} 2. g3 {[%emt 0:00:06]} Nd7 {[%emt 0:00:19]} 3. d4 {[%emt 0:00:22]} Nb6 {[%emt 0:00:05]} 4. Nc3 {[%emt 0:00:15]} Nf6 {[%emt 0:00:55]} 5. Bg2 {[%emt 0:00:18]} Bf5 {[%emt 0:00:29]} 6. Nh4 {[%emt 0:00:10]} Bg6 {[%emt 0:04:06]} 7. Nxg6 {[%emt 0:05:17]} hxg6 {[%emt 0:00:09]} 8. e4 {[%emt 0:18:34] White is slightly better.} e6 {[%emt 0:01:26]} 9. Qd3 {[%emt 0:03:26]} c6 {[%emt 0:03:44][%cal Bc7c6,Bc6c5][%mdl 32]} 10. O-O {[%emt 0:08:57]} Be7 {[%emt 0:01:34]} 11. e5 {[%emt 0:06:10]} Nfd7 {[%emt 0:00:25]} 12. Ne2 {[%emt 0:00:19]} c5 {[%emt 0:02:41]} 13. c3 {[%emt 0:00:05]} Qc7 {[%emt 0:02:01]} 14. b3 {[%emt 0:05:43]} a5 {[%emt 0:05:53][%cal Ba7a5,Ba5a4][%mdl 32]} 15. Be3 {[%emt 0:11:02]} a4 {[%emt 0:03:12]} 16. Qd2 {[%emt 0:02:26]} (16. Nf4 $16) 16... O-O $14 {[%emt 0:04:22]} 17. f4 {[%emt 0:01:17]} Rfc8 {[%emt 0:10:40]} 18. Rac1 {[%emt 0:04:49]} axb3 {[%emt 0:02:37]} 19. axb3 {[%emt 0:00:35]} Ra3 {[%emt 0:05:11]} 20. Qb2 {[%emt 0:07:11]} Rca8 {[%emt 0:02:05]} 21. Ra1 {[%emt 0:00:34] Prevents Ra2.} c4 {[%emt 0:00:52]} 22. Rxa3 {[%emt 0:01:59]} Bxa3 {[%emt 0:01:01]} 23. Qb1 {[%emt 0:00:47]} cxb3 {[%emt 0:00:45]} 24. Qxb3 {[%emt 0:00:28]} Qc4 {[%emt 0:04:18]} 25. Qxc4 {[%emt 0:03:20]} Nxc4 {[%emt 0:00:12]} 26. Bf2 {[%emt 0:01:16]} Bb2 {[%emt 0:01:47]} 27. g4 {[%emt 0:03:53][%cal Of4f5]} Ra3 {[%emt 0:08:15][%cal Od7b6]} 28. f5 {[%emt 0:00:10]} gxf5 {[%emt 0:00:53]} 29. gxf5 {[%emt 0:02:08]} Bxc3 {[%emt 0:05:22]} 30. fxe6 {[%emt 0:00:11]} fxe6 {[%emt 0:00:03]} 31. Nf4 {[%emt 0:03:36]} Nd2 {[%emt 0:01:36]} 32. Nxe6 {[%emt 0:01:32]} (32. Rd1 $15) 32... Nxf1 $17 {[%emt 0:00:41]} 33. Kxf1 {[%emt 0:00:14]} Ra1+ {[%emt 0:20:13]} 34. Ke2 {[%emt 0:00:04]} Ra2+ {[%emt 0:00:06]} 35. Kf1 {[%emt 0:00:06]} Ra1+ {[%emt 0:00:17]} 36. Ke2 {[%emt 0:00:01]} Ra2+ {[%emt 0:00:06]} 37. Kf1 {[%emt 0:00:05]} Ra1+ {[%emt 0:00:08] Weighted Error Value: White=0.10 (very precise) /Black=0.14 (very precise) .  Mistake:       	White=2     	Black=1      Inaccurate:     	White=3     	Black=2      OK:         	White=8     	Black=12     Best:        	White=4     	Black=3} ({Black should try} 37... Nb6 $17 38. Bf3 Bd2) 1/2-1/2

[Event "Austrian Bundesliga 2023-24"]
[Site "Austria"]
[Date "2024.03.21"]
[Round "8.25"]
[White "Georgiadis, Nico"]
[Black "Pechac, Jergus"]
[Result "1/2-1/2"]
[ECO "C60"]
[WhiteElo "2537"]
[BlackElo "2571"]
[Annotator "TA"]
[PlyCount "28"]
[EventDate "2023.10.21"]
[EventType "team-tourn"]
[EventCountry "AUT"]
[SourceTitle "playchess.com"]
[Source "ChessBase"]
[SourceQuality "1"]
[TimeControl "40/5400+30:1800+30"]

{[%evp 11,28,22,26,18,38,21,29,24,28,22,14,29,16,0,22,0,32,0,35]} 1. e4 {[%emt 0:00:04]} e5 {[%emt 0:00:10]} 2. Nf3 {[%emt 0:00:07][%cal Bg1f3,Bf3d4,Bd4f5,Bf5e3,Be3d5][%mdl 32]} Nc6 {[%emt 0:00:02]} 3. Bb5 {[%emt 0:00:08]} Nge7 {[%emt 0:00:06]} 4. O-O {[%emt 0:01:44]} Ng6 {[%emt 0:00:07]} 5. d4 {[%emt 0:00:19]} exd4 {[%emt 0:00:06]} 6. Nxd4 {[%emt 0:00:07]} Bc5 {[%emt 0:00:04]} 7. Nf5 {[%emt 0:00:13]} O-O {[%emt 0:00:08][%cal Od7d5]} 8. Be3 {[%emt 0:00:04]} Bxe3 {[%emt 0:00:06]} 9. Nxe3 {[%emt 0:00:05] White has an edge.} d6 {[%emt 0:00:06]} 10. Qd2 {[%emt 0:00:48]} Qg5 {[%emt 0:00:17]} 11. Nd5 {[%emt 0:05:20]} Qd8 {[%emt 0:00:24]} 12. Ne3 {[%emt 0:00:26]} Qg5 {[%emt 0:00:06]} 13. Nd5 {[%emt 0:01:24]} Qd8 {[%emt 0:00:06]} 14. Ne3 {[%emt 0:05:54]} Qg5 {A rather calm draw.   Weighted Error Value: White=0.12 (very precise) /Black=0.00 (flawless) .  OK:         	White=1     	Black=7} 1/2-1/2